Cogmind - Beta 13 @@@ ROGUE MODE // 2024.04.09 @ 20:19:25 Player: Olafz Result: Destroyed by G-47 Trooper with Particle Gun Performance ------------- Evolutions (2) 1000 Regions Visited (3) 600 Robots Destroyed (38) 190 Value Destroyed (959) 959 Prototype IDs (2) 40 Alien Tech Used (0) 0 Bonus (0) 0 TOTAL SCORE: 2789 Bonus ------- None Cogmind --------- Core Integrity 0/550 Matter 280/300 Energy 99/100 System Corruption 0% Temperature Cool (18) Movement Core (100) Ox1 Location -8/Materials Parts ------- > --- POWER (1) -------- (None) > --- PROPULSION (3) --- (None) > --- UTILITY (5) ------ Weight Redist. System > --- WEAPON (2) ------- Axe Axe > --- INVENTORY (5) ---- Small Storage Unit Actuator Array Grenade Launcher Maul Heavy Hammer Peak State ------------ > --- POWER ------------ Improved Ion Engine > --- PROPULSION ------- Advanced Treads Advanced Treads > --- UTILITY ---------- Small Storage Unit Visual Processing Unit Hardened Medium Armor Plating Hardened Medium Armor Plating > --- WEAPON ----------- Shock Rifle Shock Rifle > --- INVENTORY -------- Ion Engine Advanced Treads Advanced Treads Hardened Medium Armor Plating Grenade Launcher Maul Heavy Hammer Heavy Hammer [Rating: 24] Favorites ----------- Power Light Nuclear Core Engine Light Ion Engine Power Core Light Nuclear Core Propulsion Aluminum Leg Treads Advanced Treads Leg Aluminum Leg Wheel Wheel Hover Unit Hover Unit Flight Unit Cesium-ion Thruster Utility Visual Processing Unit Device Weight Redist. System Storage Small Storage Unit Processor Visual Processing Unit Protection Hardened Medium Armor Plating Weapon EM Pulse Gun Energy Gun EM Pulse Gun Ballistic Gun Light Assault Rifle Impact Weapon Heavy Hammer Slashing Weapon Axe Build | -11 -10 -9 -8 ------- Run | Yrd Mat Mat Mat Slots Evolved 4 | . . 2 2 Power . | . . . . Propulsion 1 | . . . 1 Utility 3 | . . 2 1 Weapon . | . . . . Parts Attached 43 | . 15 20 8 Power 6 | . 3 3 . Engine 5 | . 2 3 . Core 1 | . 1 . . Reactor . | . . . . Propulsion 16 | . 6 6 4 Treads 2 | . . 2 . Leg 5 | . 5 . . Wheel 1 | . 1 . . Hover 7 | . . 4 3 Flight 1 | . . . 1 Utility 9 | . 2 5 2 Device 3 | . . 1 2 Storage 3 | . 1 2 . Processor 1 | . 1 . . Hackware . | . . . . Protection 2 | . . 2 . Artifact . | . . . . Weapon 12 | . 4 6 2 Energy Gun 5 | . 3 2 . Energy Cannon . | . . . . Ballistic Gun 1 | . 1 . . Ballistic Cannon . | . . . . Launcher . | . . . . Special Weapon . | . . . . Impact Weapon 4 | . . 4 . Slashing Weapon 2 | . . . 2 Piercing Weapon . | . . . . Special Melee Weapon . | . . . . Unidentified Prototypes . | . . . . Corrupted Parts 1 | . 1 . . System Corruption 1 | . 1 . . Parts Lost 18 | . 4 5 9 Power 2 | . 1 . 1 Propulsion 6 | . . . 6 Utility 3 | . . 2 1 Weapon 7 | . 3 3 1 Highest Loss Streak 4 | . 2 3 4 To Critical Strikes . | . . . . Average Slot Usage (%) 75 | . 85 78 35 Engine 6 | . 8 6 . Core 3 | . 5 3 . Treads 3 | . . 9 . Leg 12 | . 19 8 . Hover 2 | . . 4 5 Device 1 | . . . 11 Storage 10 | . 14 9 2 Processor 9 | . 13 8 . Protection 3 | . . 7 . Energy Gun 11 | . 16 9 . Ballistic Gun 4 | . 7 3 . Impact Weapon 3 | . . 5 5 Naked Turns 1 | . . 1 . Heaviest Build 34 | 12 28 34 16 Greatest Support 44 | 20 20 44 24 Greatest Overweight (x) 9 | . 9 1 1 Average Overweight (x) . | . 1 . . Largest Inventory Capacity 15 | . 15 15 8 Average Capacity 10 | . 11 9 5 Most Carried 8 | . 8 8 5 Average Carried 5 | . 4 6 4 Final Capacity 15 | 8 15 8 5 Final Carried 6 | 6 5 5 5 Class Distribution -------------------- 77% | Mutant 22% | Scavenger-Mutant Dominant Class ---------------- Mutant | -10/Materials Mutant | -9/Materials Mutant | -8/Materials Resources | -11 -10 -9 -8 ----------- Run | Yrd Mat Mat Mat Matter Collected 585 | 200 163 197 25 Remotely . | . . . . Salvage Created 1491 | . 821 630 40 Parts 82 | . 49 29 4 Haulers Intercepted 1 | . . 1 . Recyclers Shooed 1 | . . 1 . Parts Field Recycled . | . . . . Retrieved Matter . | . . . . Parts Self-Destructed . | . . . . Prevented . | . . . . Kills | -11 -10 -9 -8 ------- Run | Yrd Mat Mat Mat Combat Hostiles Destroyed 25 | . 13 9 3 Melee 4 | . . 1 3 Guns 17 | . 13 4 . AOE 1 | . . 1 . Classes Destroyed 10 | . 7 3 . Worker 1 | . 1 . . Builder 1 | . 1 . . Tunneler 1 | . . 1 . Hauler 1 | . . 1 . Recycler 3 | . 2 1 . Operator 2 | . 1 1 . Watcher 4 | . 3 1 . Swarmer 6 | . 3 . 3 Grunt 14 | . 10 4 . Sentry 5 | . . 5 . Best Kill Streak 6 | . 6 3 2 Combat Bots Only 3 | . 3 2 2 Max Kills in Single Turn 2 | . 2 1 1 Gunslinging . | . . . . Exploded 1 | . . 1 . Melee 1 | . . 1 1 Uniques/NPCs Destroyed . | . . . . Combat | -11 -10 -9 -8 -------- Run | Yrd Mat Mat Mat Hostile Shots Fired 334 | . 88 138 108 Missed 87 | . 26 32 29 Damage Taken 3094 | . 664 1424 1006 Core 969 | . 146 266 557 Absorbed by Shields . | . . . . Core Remaining (%) 58 | 100 41 33 . Volleys Fired 127 | . 76 51 . Largest 2 | . 2 2 . Hottest 100 | . 80 100 . Shots Fired 177 | . 112 65 . Gun 177 | . 112 65 . Cannon . | . . . . Launcher . | . . . . Special . | . . . . Kinetic 50 | . 30 20 . Thermal . | . . . . Explosive . | . . . . Electromagnetic 127 | . 82 45 . Robot Hit Streak 15 | . 15 9 . Robot Miss Streak 4 | . 3 4 . Penetration Max . | . . . . Secondary Targets . | . . . . Shots Hit Robots 131 | . 65 56 10 Core Hits 54 | . 33 18 3 Critical Kills 1 | . . . 1 Critical Parts Destroyed 5 | . . 4 1 Critical Strikes 8 | . 2 4 2 Corrupt 2 | . 2 . . Smash 6 | . . 4 2 Melee Attacks 40 | . . 12 28 Impact 31 | . . 12 19 Slashing 9 | . . . 9 Piercing . | . . . . Sneak Attacks 1 | . . 1 . Combat Hostiles . | . . . . Follow-up Attacks 3 | . . . 3 Damage Inflicted 2266 | . 858 1079 329 Guns 1455 | . 858 597 . Cannons . | . . . . Explosions 38 | . . 38 . Melee 773 | . . 444 329 Ramming . | . . . . Kinetic 247 | . 114 133 . Thermal 38 | . . 38 . Explosive . | . . . . Electromagnetic 1208 | . 744 464 . Impact 773 | . . 444 329 Slashing . | . . . . Piercing . | . . . . Highest Corruption 1 | . 1 . . Average Corruption 1 | . 1 . . Corruption Purged . | . . . . Corruption Blocked . | . . . . Effects 2 | . 2 . . Energy Discharges 1 | . 1 . . Data Loss (minor) 1 | . 1 . . Overload Shots . | . . . . Overflow Damage 253 | . . 192 61 Projectiles . | . . . . Explosions . | . . . . Melee 253 | . . 192 61 Knockbacks 2 | . . . 2 Impact 2 | . . . 2 Kinetic . | . . . . Secondary . | . . . . Self-Inflicted Damage . | . . . . Shots . | . . . . Rammed . | . . . . Targets Rammed . | . . . . Kicked . | . . . . Crushed . | . . . . Highest Temperature 395 | . 223 395 . Average Temperature 132 | . 83 178 . Received Heat Transfer 1383 | . 327 597 459 Effects 5 | . 1 4 . Shutdowns 2 | . . 2 . Energy Bleed 2 | . 1 1 . Short Circuit 1 | . . 1 . Siege Activations . | . . . . Robots Corrupted 1 | . . 1 . Combat Hostiles 1 | . . 1 . Parts Fried 11 | . 1 9 1 Impact Corruptions 12 | . . 9 3 Robots Melted . | . . . . Combat Hostiles . | . . . . Parts Melted . | . . . . Heat Transferred 50 | . . 50 . Parts Sabotaged . | . . . . Parts Stolen . | . . . . Parts Stripped . | . . . . Power Chain Reactions 1 | . . 1 . Alert | -11 -10 -9 -8 ------- Run | Yrd Mat Mat Mat Peak Influence 385 | . 275 265 385 Initial 111 | . . 26 111 Average 120 | . 113 94 222 Maximum Alert Level 1 | . 1 1 1 Low Security (%) 78 | . 79 86 51 Level 1 21 | . 20 13 48 Level 2 . | . . . . Level 3 . | . . . . Level 4 . | . . . . Level 5 . | . . . . High Security . | . . . . Max Security . | . . . . Squads Dispatched 5 | . 3 . 2 Investigation 3 | . 3 . . Extermination . | . . . . Reinforcement 2 | . . . 2 Assault . | . . . . Garrison . | . . . . Intercept . | . . . . Searches Triggered . | . . . . Construction Impeded . | . . . . Haulers Reinforced . | . . . . Active Scanning Responses . | . . . . Cargo Convoy Interrupts . | . . . . Stealth | -11 -10 -9 -8 --------- Run | Yrd Mat Mat Mat Distress Signals 4 | . 1 2 1 Communications Jammed . | . . . . Distress Signals . | . . . . Times Spotted 64 | . 19 18 27 Peak Tracking Total 11 | . 3 4 11 Tactical Retreats 8 | . . 3 5 Traps | -11 -10 -9 -8 ------- Run | Yrd Mat Mat Mat Traps Triggered 1 | . 1 . . Indirectly . | . . . . Trap Hack Attempts . | . . . . Triggered . | . . . . Disarmed . | . . . . Reprogrammed . | . . . . Reused . | . . . . Traps Extracted . | . . . . Installed . | . . . . Triggered . | . . . . Machines | -11 -10 -9 -8 ---------- Run | Yrd Mat Mat Mat Machines Disabled 3 | . 1 2 . Max in Single Turn 1 | . 1 1 . Machines Repaired . | . . . . Machines Dismantled . | . . . . Machines Sabotaged . | . . . . Overloaded Fab Kills . | . . . . Hacking | -11 -10 -9 -8 --------- Run | Yrd Mat Mat Mat Machines Accessed 4 | . 4 . . Terminals 4 | . 4 . . Fabricators . | . . . . Repair Stations . | . . . . Recycling Units . | . . . . Scanalyzers . | . . . . Garrison Access . | . . . . Total Hacks 15 | . 15 . . Successful 5 | . 5 . . Failed 10 | . 10 . . Catastrophic 1 | . 1 . . Database Lockouts . | . . . . Manual 14 | . 14 . . Terminals 15 | . 15 . . Fabricators . | . . . . Repair Stations . | . . . . Recycling Units . | . . . . Scanalyzers . | . . . . Garrison Access . | . . . . Terminal Hacks 2 | . 2 . . Prototype ID Bank 1 | . 1 . . Unreport Threat 1 | . 1 . . Fabricator Hacks . | . . . . Repair Station Hacks . | . . . . Recycling Unit Hacks . | . . . . Scanalyzer . | . . . . Garrison Access Hacks . | . . . . Unauthorized Hacks 3 | . 3 . . Terminals 3 | . 3 . . Botnet 3 | . 3 . . Fabricators . | . . . . Repair Stations . | . . . . Recycling Units . | . . . . Scanalyzers . | . . . . Garrison Access . | . . . . Data Cores Recovered 1 | . . 1 . Used . | . . . . Hacking Detections 3 | . 3 . . Full Trace Events 3 | . 3 . . Feedback Events . | . . . . Feedback Blocked . | . . . . Robot Schematics Acquired . | . . . . Robots Built . | . . . . Authchips . | . . . . Time . | . . . . Total Robot Build Rating . | . . . . Part Schematics Acquired . | . . . . Parts Built . | . . . . Authchips . | . . . . Time . | . . . . Total Part Build Rating . | . . . . Parts Repaired . | . . . . Time . | . . . . Parts Recycled . | . . . . Recycled Matter . | . . . . Retrieved Matter . | . . . . Retrieved Components . | . . . . Parts Scanalyzed . | . . . . Part Schematics Acquired . | . . . . Parts Damaged . | . . . . Bothacking | -11 -10 -9 -8 ------------ Run | Yrd Mat Mat Mat Used RIF Installer . | . . . . Robots Hacked . | . . . . Non-combat . | . . . . Combat . | . . . . Robot Hacks Applied . | . . . . Relay Couplers Released . | . . . . Fabnet Peak Effective % . | . . . . Robots Rewired . | . . . . Allies Hacked . | . . . . Hacks Repelled . | . . . . Allies | -11 -10 -9 -8 -------- Run | Yrd Mat Mat Mat Total Allies . | . . . . Largest Group . | . . . . Highest-Rated Group . | . . . . Highest-Rated Ally . | . . . . Total Orders . | . . . . Ally Attacks . | . . . . Total Damage . | . . . . Kills . | . . . . Allies Corrupted . | . . . . Allies Melted . | . . . . Intel | -11 -10 -9 -8 ------- Run | Yrd Mat Mat Mat Robot Analysis Total . | . . . . Derelict Logs Recovered . | . . . . Drone Launches . | . . . . Drone Recoveries . | . . . . Exploration | -11 -10 -9 -8 ------------- Run | Yrd Mat Mat Mat Turns Passed 1632 | . 746 668 218 Spaces Moved 856 | 1 283 345 227 Core 122 | . 41 1 80 Treads 135 | . . 135 . Legs 358 | 1 242 115 . Wheels . | . . . . Hover 137 | . . 94 43 Flight 104 | . . . 104 Fastest Speed 35 | 120 120 50 35 Average Speed 134 | 120 191 137 60 Slowest Speed 500 | 120 500 190 100 Overloaded Moves . | . . . . Propulsion Burnouts . | . . . . Robots Hopped 2 | . . . 2 Cave-ins Triggered . | . . . . Exploration Rate (%) 35 | 2 63 37 41 Regions Visited 3 Branch Regions . Pre-discovered Areas . | . . . . Known Exits Taken . | . . . . Unknown Exits Taken 3 | 1 1 1 . Scrap Searched . | . . . . Spaces Dug 9 | . . . 9 Terrain Destroyed 16 | . . 7 9 Melee 9 | . . . 9 Projectile . | . . . . AOE 7 | . . 7 . Terrain Rammed . | . . . . Walls Destroyed . | . . . . Machines Disabled . | . . . . Actions | -11 -10 -9 -8 --------- Run | Yrd Mat Mat Mat Total 1100 | . 382 455 263 Wait 9 | . . 5 4 Move 850 | . 282 344 224 Hop 1 | . . . 1 Pick Up 10 | . 1 9 . Fast Attach 22 | . 5 12 5 Attach 13 | . 6 4 3 Detach 11 | . 4 4 3 Swap 8 | . 4 4 . Drop 14 | . 4 10 . Fire 127 | . 76 51 . Melee 35 | . . 12 23 Ram . | . . . . Kick . | . . . . Crush . | . . . . Escape Stasis . | . . . . Rewire . | . . . . Trap . | . . . . Miscellaneous . | . . . . Route ------- -11/Scrapyard -10/Materials (discovered 2 exits: [*Mat x2]) -9/Materials -8/Materials History --------- Turn | Location | Event 1 | -11/Scrapyard | Discovered new exit (range 0) 1 | -11/Scrapyard | Entered Materials 181 | -10/Materials | Discovered new exit (range 10) 301 | -10/Materials | Build established: Mutant 572 | -10/Materials | Discovered new exit (range 16) 667 | -10/Materials | Core integrity fell below 50% 700 | -10/Materials | Derelicts attacked the area 747 | -10/Materials | Entered another Materials area 747 | -9/Materials | Evolved 2 slots: Utility x2 1285 | -9/Materials | Released all parts (5) 1289 | -9/Materials | Core integrity fell below 50% 1315 | -9/Materials | Lost 3 parts (2u1w) 1414 | -9/Materials | Discovered new exit (range 3) 1415 | -9/Materials | Entered another Materials area 1415 | -8/Materials | Evolved 2 slots: Propulsion x1, Utility x1 1475 | -8/Materials | Lost 4 parts (1p3n) 1521 | -8/Materials | Lost 3 parts (2n1w) 1575 | -8/Materials | Core integrity fell below 50% 1624 | -8/Materials | Core integrity fell below 20% 1633 | -8/Materials | Destroyed by G-47 Trooper with Particle Gun Last Messages --------------- Acquired Axe. Acquired 25 matter. Acquired Actuator Array. Acquired Imp. Sensor Array. Cesium-ion Thruster destroyed. Processing Tank disabled. K-01 Serf collects debris. ALERT: Hostiles spotted, dispatching reinforcements to Terminal M007. K-01 Serf collects debris. Critical hit (Burn: +37). K-01 Serf collects debris. Critical hit (Burn: +37). K-01 Serf collects debris. Imp. Sensor Array destroyed. Acquired Axe. K-01 Serf collects debris. Critical hit (Burn: +37). O-16 Technician: "IFF HANDSHAKE FAILED. SECURING TERMINAL." Map ----- +----------------------------------------------------+ | ?????????????# """ # + | | ?????????????# """ # ##### #######+ | | ?????????????# """ # #???# #??????? | | ?????????????# # #???# #??????? | | ?????????##??? *###/####???# #??????? | | ????????##! ####+### #????# #??????? | | ????????#! #????# #??????? | | ????????#! #????# #??????? | | ????????#! #????# #??????? | | ????????#! ####+### #???? ??????? | | ????????##!??# ]### ###???? ??????? | | ?????????#???#!! #?# #?????? ??????? | | ?????????#???#!! ### #?????? ??????? | | ????????? ??#!! "## #?????? ??????? | | ??????????"??# !#"# ###???? ??????? | | ??????????? ######## ! #???? ??##??? | | ??????????? # ##### ???? | | ????????????+ T ????? | | ????????????# ##### ??? | | ????????????# g#### #?????????????? | | ????????????# #??###/###?????????????? | | ????????????# #???# #??????????????? | | ????????????# #???# " #??????????????? | | ????????????# #???# T #??????????????? | | ????????????# #???# " #??????????????? | | ????????????# @#???# #??????????????? | | ????????????# #???# #??????????????? | | ????????????# #???#! #??????????????? | | ??????????? ; #???#####??????????????? | | ?????????? # #??????????????????????? | | ?????????#### #??????????????????????? | | ???????????? ??????????????????????? | | ???????????? r ??????????????????????? | | ???????????+ Y ??????????????????????? | | ???????????# ??????????????????????? | | ???????????# ??????????????????????? | | ???????????### ??????????????????????? | | ?????????????# ??????????????????????? | | ?????????????? ??????????????????????? | | ?????????????? ??????????????????????? | | ?????????????? ??????????????????????? | | ???????????????????????????????????????? | | ???????????????????????????????????????? | | ???????????????????????????????????????? | | ???????????????????????????????????????? | | ???????????????????????????????????????? | | ???????????????????????????????????????? | | ???????????????????????????????????????? | | ???????????????????????????????????????? | | ???????????????????????????????????????? | +----------------------------------------------------+ Best States ------------- Heat Dissipation 31 Energy Generation 14 Energy Capacity 265 Matter Stores 300 Matter Capacity 300 Sight Range 18 Robot Scan Range 15 Terrain Scan Density 10 Additional Mass Support 6 Armor Coverage 450 Evasion (%) 63 Recoil Reduction 2 Item Schematics ----------------- None Robot Schematics ------------------ None Fabricated ------------ Nothing Alien Tech Used ----------------- None Achievements -------------- None Challenges ------------ None Game ------ Seed SystemImprinterStorm Manual? 0 Play Time 00:18:48 Cumulative 38.9 hours Start 2024.04.09 @ 20:01:06 End 2024.04.09 @ 20:19:25 Sessions 1 Manual Loads 0 Difficulty Rogue Special Mode None Game No. 105 Rogue 103 Adventurer 2 Explorer 0 Win Type - Total 0 Types 0/0/0/0/0/0/0/0/0 Lore% 28 Gallery% 35 Achievement% 26 Wizard Run 0 Options --------- Layout 2 ASCII 0 Keyboard 1 Movement Numpad Keybinds 1 Fullscreen 2 Font 24/Smallcaps Map View 50x44 Zoom Use 0% Tactical HUD 1 Map Filters NONE Filters NONE Steam 1 RUN: 44911627-83bf-45ec-9587-bd827ba8ad43